Workbook

Sheet Sheet1
A1: WAVECREST AOAO
A2: FINANCIAL OPERATIONS REVIEW
A3: July 31, 2009
A5: January -July | B5: Y-T-D | C5: Y-T-D | D5: Y-T-D
A6: Budget & Expenditures | B6: Budget | C6: Expenditures | D6: Variance
A8: Total Revenue | B8: 485240 | C8: 469688 | D8: =+B8-C8 -> 15552
A10: Less: Operating Expense | B10: 483872 | C10: =397407 -> 397407 | D10: =+B10-C10 -> 86465
A12: Operating Surplus | B12: =+B8-B10 -> 1368 | C12: =+C8-C10 -> 72281 | D12: =+D8-D10 -> -70913
A14: Less: Reserve Fund Capital Expenditures | C14: -850
A15: Less: Mortgage adjustment | C15: -2243
A17: Net Increase (Cash & Reserve Funds) | C17: =SUM(C12:C16) -> 69188
A19: Our overall financial condition continues to be good.
A20: Both YTD Revenue and Operating Expenses continue to be less than budgeted with revenue exceeding
A21: expenditures by $69,188. The electrical budget continues to lead in savings, followed by Payroll
A22: and benefit savings. Legal costs will be the major line-item area with a projected deficit.
A27: Cash & Investment Balances | B27: Total | C27: Operating | D27: Reserve
C28: Fund (Cash) | D28: Fund (Invest)
A29: Dec. 31, 2008 Cash & Investment Balance | B29: 415698 | C29: 36840 | D29: 378858
A31: Net Increase (Decrease) 2009 | B31: 69188 | C31: =B31-D31 -> 53902 | D31: 15286
A34: Cash & Investment Balance | B34: =SUM(B29:B33) -> 484886 | C34: =SUM(C29:C33) -> 90742 | D34: =SUM(D29:D33) -> 394144
A36: The $69,188 cash surplus is allocated between our Operating Fund for on-going costs and the Reserve
A37: Fund which pays for Capital Improvement projects. Our current total cash and investment balance is
A38: 484886
A41: Annual Budget & Expenditures | B41: Annual | C41: Est. Annual | D41: Estimated
B42: Budget | C42: Expenditures | D42: Variance
A44: Total Revenue | B44: 831840 | C44: 793052 | D44: =B44-C44 -> 38788
A46: Less: Operating Expense | B46: 809272 | C46: 703706 | D46: =B46-C46 -> 105566
A48: Operating Surplus | B48: =B44-B46 -> 22568 | C48: =C44-C46 -> 89346 | D48: =D44-D46 -> -66778
A50: Less: Reserve Fund Capital Expenditures | B50: -22568 | C50: -27000 | D50: =B50-C50 -> 4432
A51: Less: Mortgage adjustment | B51: 0 | C51: -2243
A53: Net Increase (Cash & Reserve Funds) | C53: =SUM(C48:C52) -> 60103
A56: The savings at the end of the year is projected to be $60,103. This estimate is based on a conservative
A57: estimated of revenue and a projection of operating expenses based on current levels of expenses.
A60: Cash & Investment Balances | B60: Total | C60: Operating | D60: Reserve
C61: Fund (Cash) | D61: Fund (Invest)
A62: Dec. 31, 2008 Cash & Investment Balance | B62: 415698 | C62: 36840 | D62: 378858
A64: Net Increase (Decrease) 2009 | B64: 60103 | C64: =B64-D64 -> 64535 | D64: -4432
A67: Cash & Investment Balance | B67: =SUM(B62:B66) -> 475801 | C67: =SUM(C62:C66) -> 101375 | D67: =SUM(D62:D66) -> 374426
A69: The year-end balance of reserve funds reflects a reduction of $4,432 from the start of the year. This is the
A70: difference between the $22,568 budgeted transfer of funds to reserves and the estimated expenditure of
A71: $27,000 for plumbing repairs.
C74: Prior 2009 | D74: Added
A75: Maintenance Fees Collection Status | B75: Total | C75: shortfall | D75: this month
A77: Delinquencies Dec. 31, 2008 | B77: 40918
A79: Delinquencies June 30, 2009 | B79: 81179
A81: Change in 2009 | B81: =+B79-B77 -> 40261 | C81: 29703 | D81: =+B81-C81 -> 10558
A84: Sixteen Units are again listed on the Delinquency Report. One of the June units has dropped off and one
A85: new unit added. The $10,558 of added delinquencies this month is primarily the result of one unit being
A86: assessed $10,000. Payments of past due amounts actually increased by $2,000 over June. The
A87: $10,000 assessment is expected to be cleared in September.

Sheet Sheet2
A1: WAVECREST AOAO
A2: FINANCIAL OPERATIONS REVIEW
A3: July 31, 2009
B5: January through July | G5: January through December
B6: Y-T-D | C6: Y-T-D | D6: Y-T-D | G6: Annual | H6: Est. Annual | I6: Estimated
A7: Budget & Expenditures | B7: Budget | C7: Expenditures | D7: Variance | G7: Budget | H7: Expenditures | I7: Variance
A9: Total Revenue | B9: 485240 | C9: 469688 | D9: =+B9-C9 -> 15552 | G9: 831840 | H9: 793052 | I9: =G9-H9 -> 38788
A11: Less: Operating Expense | B11: 483872 | C11: =397407 -> 397407 | D11: =+B11-C11 -> 86465 | G11: 809272 | H11: 703706 | I11: =G11-H11 -> 105566
A13: Operating Surplus | B13: =+B9-B11 -> 1368 | C13: =+C9-C11 -> 72281 | D13: =+D9-D11 -> -70913 | G13: =G9-G11 -> 22568 | H13: =H9-H11 -> 89346 | I13: =I9-I11 -> -66778
A15: Less: Reserve Fund Capital Expenditures | C15: -850 | G15: -22568 | H15: -27000 | I15: =G15-H15 -> 4432
A16: Less: Mortgage adjustment | C16: -2243 | G16: 0 | H16: -2243
A18: Net Increase (Cash & Reserve Funds) | C18: =SUM(C13:C17) -> 69188 | H18: =SUM(H13:H17) -> 60103
A20: Our overall financial condition continues to be good. Both YTD Revenue and Operating Expenses continue to be less than
A21: budgeted, but still revenue exceeds expenditures by $69,188. The electrical budget continues to lead in savings as a result of
A22: a reduction in oil prices from last year. Other areas of savings include gas and payroll allotments. Legal costs will be the
A23: major line-item exceeding the budget. The full-year projection indicates an increase in the Operating Surplus but a reduction in
A24: overall cash balance as Reserve Funds will be expended for plumbing improvements, a capital expenditure. This estimate is based
A25: on a conservative estimate of revenue and operating expenses continuing at current levels.
A28: Cash & Investment Balances | B28: Total | C28: Operating | D28: Reserve | G28: Total | H28: Operating | I28: Reserve
C29: Fund (Cash) | D29: Fund (Invest) | H29: Fund (Cash) | I29: Fund (Invest)
A30: Dec. 31, 2008 Cash & Investment Balance | B30: 415698 | C30: 36840 | D30: 378858 | G30: 415698 | H30: 36840 | I30: 378858
A32: Net Increase (Decrease) 2009 | B32: 69188 | C32: =B32-D32 -> 53902 | D32: 15286 | G32: 60103 | H32: =G32-I32 -> 64535 | I32: -4432
A35: Cash & Investment Balance | B35: =SUM(B30:B34) -> 484886 | C35: =SUM(C30:C34) -> 90742 | D35: =SUM(D30:D34) -> 394144 | G35: =SUM(G30:G34) -> 475801 | H35: =SUM(H30:H34) -> 101375 | I35: =SUM(I30:I34) -> 374426
A38: The cash surpluses are allocated between the Operating Fund for on-going-costs and the Reserve Fund which pays for Capital
A39: improvements. The fund balances total $484,886, distributed $90,742 to the Operating Fund and $394,144 to the Reserve Fund.
A40: The year-end projection reduces the total fund balances to $475,801 with the Operating Fund increasing to $101,375 and the
A41: Reserve Fund reducing to $374,426 as a result of expending $27,000 for capital improvements.
C46: Prior 2009 | D46: Added
A47: Maintenance Fees Collection Status | B47: Total | C47: shortfall | D47: this month
A49: Delinquencies Dec. 31, 2008 | B49: 40918
A51: Delinquencies July 31, 2009 | B51: 81179
A53: Change in 2009 | B53: =+B51-B49 -> 40261 | C53: 29703 | D53: =+B53-C53 -> 10558
A56: Sixteen Units are again listed on the Delinquency Report. One of the Units in June has dropped off and a new one added.
A57: The $10,558 of added delinquencies this month is primarily the result of one unit being assessed $10,000. Aside from this
A58: amount , payments on past due accounts actually increased by $2,000 over June. The $10,000 assessments is expected
A59: to be cleared in September.

Sheet Sheet3
A1: WAVECREST AOAO
A2: Treasurer's Report
A3: March 10, 2010
B7: January 2010 | F7: January through December
B8: Y-T-D | C8: Y-T-D | D8: Y-T-D | F8: Annual | G8: Estimated | H8: Estimated
A9: Budget & Expenditures | B9: Budget | C9: Rev - Exp | D9: Variance | F9: Budget | G9: Rev - Exp | H9: Variance
A11: Total Revenue | B11: 67363 | C11: 70437 | D11: =+B11-C11 -> -3074 | F11: 808340 | G11: 808340 | H11: =+F11-G11 -> 0
A13: Less: Operating Expense | B13: 62986 | C13: 57482 | D13: =+B13-C13 -> 5504 | F13: 781626 | G13: 781626 | H13: =+F13-G13 -> 0
A15: Operating Surplus | C15: =+C11-C13 -> 12955 | G15: =+G11-G13 -> 26714
A17: Capital Expenditures | C17: 13500 | G17: 91607
A19: Net Increase (Cash & Reserve Funds) | C19: =+C15-C17 -> -545 | G19: =+G15-G17 -> -64893
A22: January Revenues exceeded the budget and Operating Expenses were under the budget producing a surplus of $12,955. Capital Expenditures
A23: of $13,500 was made for half of the cost of replacing the Hot Water Return Pipes in each building resulting in a net change of ($545).
A25: Revenue: We have allowed for a monthly shortfall of $3,750 from delinquent maintenance fees. This month that did not happen. Our shortfall was
A26: only about $500. I believe that this level is temporary and net delinquencies will increase in the future.
A28: Expenditures: The electrical budget produced a savings of $800 for the month. The remainder of the savings is simply the difference in how
A29: expenditures are budgeted on a monthly basis and how payments are made. For example, repairs are allocated on a monthly basis at 1/12th of
A30: the annual budget, but they are paid for as needed. Over time these temporary savings will disappear.
A32: There is nothing in the January Financial Report that appears significant enough to suggest additional incomes or deficits in our operating expenses.
A34: The Capital Expenditures for the year are the amounts planned for 2010 plus $27,000 carried over from 2009 for the Hot Water Return Project.
A37: Cash & Investment Balances | B37: Total | C37: Operating | D37: Reserve | F37: Total | G37: Operating | H37: Reserve
C38: Fund | D38: Fund (Invest) | G38: Fund | H38: Fund (Invest)
A39: Dec. 31, 2009 Cash & Investment Balance | B39: 534144 | C39: 77092 | D39: 457052 | F39: 534144 | G39: 77092 | H39: 457052
A41: Net Increase (Decrease) in 2010 | B41: -545 | C41: =+B41-D41 -> -545 | D41: 0 | F41: -64893 | G41: 0 | H41: -64893
A43: Cash & Investment Balance Jan 2010 | B43: =SUM(B39:B42) -> 533599 | C43: =SUM(C39:C42) -> 76547 | D43: =SUM(D39:D42) -> 457052 | F43: =SUM(F39:F42) -> 469251 | G43: =SUM(G39:G42) -> 77092 | H43: =SUM(H39:H42) -> 392159
A45: Funds will be transferred from the Reserve Fund for the $64,893 needed for Capital Expenditures.
A49: Delinquencies | B49: Beginning | C49: January | D49: January | E49: Ending
B50: Balance | C50: Charges | D50: Payments | E50: Balance
A52: Maintenance Fees | B52: 82710.47 | C52: =8168.11+579.57 -> 8747.68 | D52: =6562.52+579.57 -> 7142.09 | E52: =+B52+C52-D52 -> 84316.06
A53: Legal Fees | B53: 12171.37 | C53: 1630.78 | D53: 630 | E53: =+B53+C53-D53 -> 13172.15
A54: Late Fees | B54: 6091.16 | C54: 1000.16 | D54: 372.64 | E54: =+B54+C54-D54 -> 6718.68
A55: Other | B55: 1027.25 | C55: 97 | D55: 58.25 | E55: =+B55+C55-D55 -> 1066
A56: Total | B56: =SUM(B52:B55) -> 102000.25 | C56: =SUM(C52:C55) -> 11475.62 | D56: =SUM(D52:D55) -> 8202.98 | E56: =SUM(E52:E55) -> 105272.89
A58: Delinquencies increased by a net of $3,272.64 in January ($11,475.62 in new charges less $8,202.98 in payments). Fourteen active owners are in
A59: arrears plus three inactive owners who have lost their units due to foreclosure.
